[Event "Titled Tuesday Blitz July 4 Early 2023"]
[White "Ezat, Mohamed"]
[Black "UNSTOPPABLE_LEGEND"]
[WhiteFideId "10600906"]
[WhiteElo "2574"]
[BlackElo "2477"]
[Result "1-0"]
[Round "9"]
[TimeControl "180+2"]
[Date "2023.07.04"]
[WhiteClock "0:00:09"]
[BlackClock "0:00:03"]
[Board "87"]

1. d4 {[%clk 0:01:12]}  g6 {[%clk 0:02:51]} 2. h4 {[%clk 0:01:11]}  Bg7 {[%clk 0:02:51]} 3. h5 {[%clk 0:01:10]}  c5 {[%clk 0:02:49]} 4. hxg6 {[%clk 0:01:08]}  hxg6 {[%clk 0:02:48]} 5. Rxh8 {[%clk 0:01:08]}  Bxh8 {[%clk 0:02:49]} 6. dxc5 {[%clk 0:01:08]}  Qa5+ {[%clk 0:02:50]} 7. Bd2 {[%clk 0:01:06]}  Qxc5 {[%clk 0:02:50]} 8. Bc3 {[%clk 0:01:07]}  Nf6 {[%clk 0:02:47]} 9. Nd2 {[%clk 0:01:06]}  Ng4 {[%clk 0:02:40]} 10. e3 {[%clk 0:00:56]}  Bxc3 {[%clk 0:02:29]} 11. bxc3 {[%clk 0:00:57]}  Qxc3 {[%clk 0:02:27]} 12. Ne2 {[%clk 0:00:46]}  Qf6 {[%clk 0:02:19]} 13. Nf4 {[%clk 0:00:44]}  d6 {[%clk 0:02:07]} 14. Ne4 {[%clk 0:00:44]}  Qe5 {[%clk 0:02:05]} 15. Bd3 {[%clk 0:00:40]}  Nc6 {[%clk 0:02:00]} 16. Rb1 {[%clk 0:00:39]}  Qa5+ {[%clk 0:01:53]} 17. Kf1 {[%clk 0:00:38]}  Nge5 {[%clk 0:01:47]} 18. Bb5 {[%clk 0:00:35]}  a6 {[%clk 0:01:42]} 19. Bxc6+ {[%clk 0:00:35]}  bxc6 {[%clk 0:01:43]} 20. Nxd6+ {[%clk 0:00:26]}  exd6 {[%clk 0:01:38]} 21. Qxd6 {[%clk 0:00:26]}  Bf5 {[%clk 0:01:26]} 22. Rb7 {[%clk 0:00:21]}  Nd7 {[%clk 0:00:25]} 23. e4 {[%clk 0:00:21]}  Bg4 {[%clk 0:00:20]} 24. f3 {[%clk 0:00:20]}  Qe5 {[%clk 0:00:21]} 25. Rxd7 {[%clk 0:00:16]}  Qxd6 {[%clk 0:00:18]} 26. Rxd6 {[%clk 0:00:17]}  Bd7 {[%clk 0:00:19]} 27. Nd3 {[%clk 0:00:15]}  O-O-O {[%clk 0:00:20]} 28. Nc5 {[%clk 0:00:14]}  Be8 {[%clk 0:00:18]} 29. Rxd8+ {[%clk 0:00:14]}  Kxd8 {[%clk 0:00:19]} 30. Nxa6 {[%clk 0:00:14]}  Bd7 {[%clk 0:00:18]} 31. Nc5 {[%clk 0:00:14]}  Bc8 {[%clk 0:00:18]} 32. Kf2 {[%clk 0:00:14]}  Kc7 {[%clk 0:00:19]} 33. Ke3 {[%clk 0:00:15]}  Kb6 {[%clk 0:00:19]} 34. Kd4 {[%clk 0:00:16]}  Kb5 {[%clk 0:00:20]} 35. c3 {[%clk 0:00:15]}  g5 {[%clk 0:00:19]} 36. g3 {[%clk 0:00:15]}  Bh3 {[%clk 0:00:18]} 37. f4 {[%clk 0:00:15]}  gxf4 {[%clk 0:00:18]} 38. gxf4 {[%clk 0:00:16]}  Bf1 {[%clk 0:00:18]} 39. f5 {[%clk 0:00:16]}  Kb6 {[%clk 0:00:18]} 40. Nd7+ {[%clk 0:00:12]}  Kc7 {[%clk 0:00:18]} 41. Ne5 {[%clk 0:00:13]}  f6 {[%clk 0:00:13]} 42. Ng4 {[%clk 0:00:13]}  Kd6 {[%clk 0:00:13]} 43. Nxf6 {[%clk 0:00:13]}  c5+ {[%clk 0:00:14]} 44. Ke3 {[%clk 0:00:13]}  Bc4 {[%clk 0:00:15]} 45. Ng4 {[%clk 0:00:13]}  Bxa2 {[%clk 0:00:14]} 46. Kf4 {[%clk 0:00:10]}  Bb1 {[%clk 0:00:14]} 47. Ne3 {[%clk 0:00:11]}  Bd3 {[%clk 0:00:13]} 48. e5+ {[%clk 0:00:11]}  Ke7 {[%clk 0:00:13]} 49. e6 {[%clk 0:00:11]}  Kf6 {[%clk 0:00:09]} 50. Nd5+ {[%clk 0:00:10]}  Kg7 {[%clk 0:00:08]} 51. Ke5 {[%clk 0:00:10]}  Bb5 {[%clk 0:00:06]} 52. f6+ {[%clk 0:00:11]}  Kg6 {[%clk 0:00:06]} 53. f7 {[%clk 0:00:10]}  Kg7 {[%clk 0:00:07]} 54. Kd6 {[%clk 0:00:10]}  Kf8 {[%clk 0:00:04]} 55. Nc7 {[%clk 0:00:07]}  Ba4 {[%clk 0:00:04]} 56. Ke5 {[%clk 0:00:08]}  Ke7 {[%clk 0:00:03]} 57. Nd5+ {[%clk 0:00:08]}  Kf8 {[%clk 0:00:03]} 58. Kf6 {[%clk 0:00:09]} 1-0


[Site "https://www.chess.com"]

[Event "Titled Tuesday Blitz July 4 Early 2023"]
[White "Kim, Sergey"]
[Black "Nunez V, Gustavo Eduardo"]
[WhiteFideId "13700570"]
[BlackFideId "4403690"]
[WhiteElo "2574"]
[BlackElo "2471"]
[Result "1-0"]
[Round "9"]
[TimeControl "180+2"]
[Date "2023.07.04"]
[WhiteClock "0:00:15"]
[BlackClock "0:00:12"]
[Board "88"]

1. d4 {[%clk 0:03:00]}  Nf6 {[%clk 0:02:58]} 2. c4 {[%clk 0:03:00]}  g6 {[%clk 0:02:58]} 3. Nc3 {[%clk 0:03:00]}  Bg7 {[%clk 0:02:59]} 4. e4 {[%clk 0:03:00]}  d6 {[%clk 0:03:00]} 5. Nge2 {[%clk 0:02:59]}  O-O {[%clk 0:03:01]} 6. Ng3 {[%clk 0:02:59]}  e5 {[%clk 0:03:00]} 7. d5 {[%clk 0:02:59]}  h6 {[%clk 0:02:56]} 8. Be2 {[%clk 0:02:59]}  Nbd7 {[%clk 0:02:55]} 9. O-O {[%clk 0:02:59]}  a5 {[%clk 0:02:56]} 10. Be3 {[%clk 0:02:58]}  b6 {[%clk 0:02:54]} 11. Qd2 {[%clk 0:02:57]}  Kh7 {[%clk 0:02:52]} 12. Rae1 {[%clk 0:02:49]}  Nc5 {[%clk 0:02:51]} 13. h3 {[%clk 0:02:48]}  Ng8 {[%clk 0:02:44]} 14. Bd1 {[%clk 0:02:47]}  f5 {[%clk 0:02:38]} 15. exf5 {[%clk 0:02:43]}  gxf5 {[%clk 0:02:38]} 16. f4 {[%clk 0:02:43]}  e4 {[%clk 0:02:39]} 17. Be2 {[%clk 0:02:33]}  Ne7 {[%clk 0:02:28]} 18. Nh5 {[%clk 0:02:29]}  Bh8 {[%clk 0:02:27]} 19. Nb5 {[%clk 0:02:29]}  Bd7 {[%clk 0:02:22]} 20. Nd4 {[%clk 0:02:28]}  Ng6 {[%clk 0:02:18]} 21. Kh1 {[%clk 0:02:20]}  Rg8 {[%clk 0:02:10]} 22. Rg1 {[%clk 0:02:18]}  Qe7 {[%clk 0:02:07]} 23. Ref1 {[%clk 0:02:10]}  Raf8 {[%clk 0:02:05]} 24. b3 {[%clk 0:02:04]}  Nh4 {[%clk 0:01:59]} 25. Qe1 {[%clk 0:01:54]}  Ng6 {[%clk 0:00:06]} 26. g4 {[%clk 0:01:46]}  Nd3 {[%clk 0:00:06]} 27. Qg3 {[%clk 0:01:24]}  Qh4 {[%clk 0:00:05]} 28. Ne6 {[%clk 0:01:12]}  Qxg3 {[%clk 0:00:04]} 29. Nxg3 {[%clk 0:01:09]}  Bxe6 {[%clk 0:00:04]} 30. dxe6 {[%clk 0:01:08]}  Ne7 {[%clk 0:00:04]} 31. gxf5 {[%clk 0:00:58]}  Nxf5 {[%clk 0:00:05]} 32. Nxf5 {[%clk 0:00:58]}  Rxg1+ {[%clk 0:00:05]} 33. Kxg1 {[%clk 0:00:57]}  Rxf5 {[%clk 0:00:06]} 34. Bg4 {[%clk 0:00:57]}  Rf8 {[%clk 0:00:05]} 35. f5 {[%clk 0:00:51]}  Bf6 {[%clk 0:00:05]} 36. Bh5 {[%clk 0:00:49]}  Ne5 {[%clk 0:00:04]} 37. Kf2 {[%clk 0:00:44]}  Rg8 {[%clk 0:00:04]} 38. Rg1 {[%clk 0:00:39]}  Bh4+ {[%clk 0:00:03]} 39. Ke2 {[%clk 0:00:38]}  Rxg1 {[%clk 0:00:03]} 40. Bxg1 {[%clk 0:00:37]}  Kg7 {[%clk 0:00:03]} 41. Be3 {[%clk 0:00:36]}  Be7 {[%clk 0:00:02]} 42. Bg4 {[%clk 0:00:25]}  h5 {[%clk 0:00:01]} 43. Bxh5 {[%clk 0:00:24]}  Kf6 {[%clk 0:00:01]} 44. Bg4 {[%clk 0:00:24]}  Nxg4 {[%clk 0:00:02]} 45. hxg4 {[%clk 0:00:24]}  Ke5 {[%clk 0:00:03]} 46. Bh6 {[%clk 0:00:20]}  c6 {[%clk 0:00:03]} 47. Bg7+ {[%clk 0:00:19]}  Kf4 {[%clk 0:00:03]} 48. f6 {[%clk 0:00:19]}  Bxf6 {[%clk 0:00:02]} 49. Bxf6 {[%clk 0:00:19]}  Kxg4 {[%clk 0:00:03]} 50. e7 {[%clk 0:00:19]}  Kf5 {[%clk 0:00:04]} 51. e8=Q {[%clk 0:00:19]}  Kxf6 {[%clk 0:00:04]} 52. Qxc6 {[%clk 0:00:19]}  Ke5 {[%clk 0:00:04]} 53. Qd5+ {[%clk 0:00:19]}  Kf4 {[%clk 0:00:05]} 54. Qxd6+ {[%clk 0:00:19]}  Kf5 {[%clk 0:00:06]} 55. Qxb6 {[%clk 0:00:19]}  a4 {[%clk 0:00:07]} 56. bxa4 {[%clk 0:00:18]}  e3 {[%clk 0:00:07]} 57. Qxe3 {[%clk 0:00:18]}  Kf6 {[%clk 0:00:08]} 58. c5 {[%clk 0:00:18]}  Kf7 {[%clk 0:00:09]} 59. c6 {[%clk 0:00:19]}  Kf6 {[%clk 0:00:10]} 60. c7 {[%clk 0:00:19]}  Kg7 {[%clk 0:00:10]} 61. c8=Q {[%clk 0:00:18]}  Kh7 {[%clk 0:00:11]} 62. Qce6 {[%clk 0:00:16]}  Kh8 {[%clk 0:00:12]} 63. Q3h6# {[%clk 0:00:15]} 1-0


[Site "https://www.chess.com"]

[Event "Titled Tuesday Blitz July 4 Early 2023"]
[White "HamedWafa4"]
[Black "Garcia Almaguer, Juan Manuel"]
[BlackFideId "5110491"]
[WhiteElo "2560"]
[BlackElo "2460"]
[Result "0-1"]
[Round "9"]
[TimeControl "180+2"]
[Date "2023.07.04"]
[WhiteClock "0:00:00"]
[BlackClock "0:00:22"]
[Board "90"]

1. e4 {[%clk 0:02:57]}  e5 {[%clk 0:02:58]} 2. Nf3 {[%clk 0:02:54]}  Nc6 {[%clk 0:02:58]} 3. Bb5 {[%clk 0:02:28]}  a6 {[%clk 0:02:56]} 4. Ba4 {[%clk 0:02:27]}  Nf6 {[%clk 0:02:56]} 5. O-O {[%clk 0:02:27]}  Be7 {[%clk 0:02:55]} 6. Re1 {[%clk 0:02:27]}  b5 {[%clk 0:02:56]} 7. Bb3 {[%clk 0:02:27]}  O-O {[%clk 0:02:57]} 8. a4 {[%clk 0:02:26]}  Bb7 {[%clk 0:02:56]} 9. d3 {[%clk 0:02:26]}  d6 {[%clk 0:02:52]} 10. Nbd2 {[%clk 0:02:25]}  Na5 {[%clk 0:02:52]} 11. Ba2 {[%clk 0:02:25]}  bxa4 {[%clk 0:02:45]} 12. Nf1 {[%clk 0:02:23]}  c5 {[%clk 0:02:43]} 13. Ng3 {[%clk 0:02:11]}  Rc8 {[%clk 0:02:36]} 14. Nf5 {[%clk 0:02:09]}  c4 {[%clk 0:02:36]} 15. Bd2 {[%clk 0:02:02]}  cxd3 {[%clk 0:02:31]} 16. cxd3 {[%clk 0:02:01]}  Nb3 {[%clk 0:02:20]} 17. Bxb3 {[%clk 0:02:00]}  axb3 {[%clk 0:02:21]} 18. Qxb3 {[%clk 0:02:00]}  Rb8 {[%clk 0:02:21]} 19. Qa4 {[%clk 0:01:49]}  Nd7 {[%clk 0:02:18]} 20. Be3 {[%clk 0:01:43]}  Re8 {[%clk 0:02:03]} 21. Rac1 {[%clk 0:01:29]}  Bf8 {[%clk 0:02:00]} 22. Qa2 {[%clk 0:01:15]}  Nc5 {[%clk 0:01:56]} 23. Red1 {[%clk 0:00:58]}  Nxd3 {[%clk 0:01:45]} 24. Nh6+ {[%clk 0:00:20]}  gxh6 {[%clk 0:01:42]} 25. Rxd3 {[%clk 0:00:21]}  Bxe4 {[%clk 0:01:42]} 26. Rdc3 {[%clk 0:00:21]}  d5 {[%clk 0:01:39]} 27. Rc7 {[%clk 0:00:22]}  Qf6 {[%clk 0:01:10]} 28. Nd2 {[%clk 0:00:18]}  Bg6 {[%clk 0:00:56]} 29. Qxd5 {[%clk 0:00:15]}  Rxb2 {[%clk 0:00:56]} 30. h3 {[%clk 0:00:10]}  Rd8 {[%clk 0:00:54]} 31. Rd7 {[%clk 0:00:10]}  Rb5 {[%clk 0:00:51]} 32. Rxd8 {[%clk 0:00:05]}  Rxd5 {[%clk 0:00:51]} 33. Rxd5 {[%clk 0:00:06]}  Qe6 {[%clk 0:00:39]} 34. Rd8 {[%clk 0:00:05]}  Bf5 {[%clk 0:00:35]} 35. Nf3 {[%clk 0:00:02]}  Kg7 {[%clk 0:00:28]} 36. Nh4 {[%clk 0:00:01]}  Be7 {[%clk 0:00:24]} 37. Rdd1 {[%clk 0:00:00]}  Bg6 {[%clk 0:00:22]} 0-1


[Site "https://www.chess.com"]

[Event "Titled Tuesday Blitz July 4 Early 2023"]
[White "Mamedov, Edgar"]
[Black "Itkis, Boris"]
[WhiteFideId "13739980"]
[BlackFideId "1209167"]
[WhiteElo "2550"]
[BlackElo "2453"]
[Result "1-0"]
[Round "9"]
[TimeControl "180+2"]
[Date "2023.07.04"]
[WhiteClock "0:02:23"]
[BlackClock "0:01:40"]
[Board "93"]

1. d4 {[%clk 0:03:00]}  d5 {[%clk 0:02:57]} 2. Nf3 {[%clk 0:03:00]}  e6 {[%clk 0:02:58]} 3. c4 {[%clk 0:02:59]}  Nf6 {[%clk 0:02:52]} 4. Nc3 {[%clk 0:02:58]}  Be7 {[%clk 0:02:51]} 5. cxd5 {[%clk 0:02:56]}  exd5 {[%clk 0:02:46]} 6. Bf4 {[%clk 0:02:55]}  O-O {[%clk 0:02:45]} 7. e3 {[%clk 0:02:51]}  b6 {[%clk 0:02:42]} 8. Bd3 {[%clk 0:02:50]}  c5 {[%clk 0:02:42]} 9. O-O {[%clk 0:02:48]}  Nc6 {[%clk 0:02:36]} 10. Ne5 {[%clk 0:02:45]}  Nxe5 {[%clk 0:02:29]} 11. dxe5 {[%clk 0:02:44]}  Nd7 {[%clk 0:02:11]} 12. Nxd5 {[%clk 0:02:40]}  Bb7 {[%clk 0:01:59]} 13. Be4 {[%clk 0:02:34]}  Rb8 {[%clk 0:01:53]} 14. e6 {[%clk 0:02:29]}  fxe6 {[%clk 0:01:40]} 15. Bxb8 {[%clk 0:02:23]} 1-0


[Site "https://www.chess.com"]

[Event "Titled Tuesday Blitz July 4 Early 2023"]
[White "WindWhistler11"]
[Black "Marn, Jan"]
[BlackFideId "14619245"]
[WhiteElo "2542"]
[BlackElo "2445"]
[Result "0-1"]
[Round "9"]
[TimeControl "180+2"]
[Date "2023.07.04"]
[WhiteClock "0:00:00"]
[BlackClock "0:00:05"]
[Board "96"]

1. Nf3 {[%clk 0:02:51]}  Nf6 {[%clk 0:02:58]} 2. g3 {[%clk 0:02:52]}  d5 {[%clk 0:02:56]} 3. c4 {[%clk 0:02:53]}  e6 {[%clk 0:02:55]} 4. Bg2 {[%clk 0:02:53]}  dxc4 {[%clk 0:02:56]} 5. Qa4+ {[%clk 0:02:52]}  c6 {[%clk 0:02:56]} 6. Qxc4 {[%clk 0:02:53]}  b5 {[%clk 0:02:55]} 7. Qc2 {[%clk 0:02:54]}  Bb7 {[%clk 0:02:52]} 8. O-O {[%clk 0:02:55]}  Nbd7 {[%clk 0:02:53]} 9. d3 {[%clk 0:02:55]}  Rc8 {[%clk 0:02:51]} 10. a4 {[%clk 0:02:52]}  a6 {[%clk 0:02:51]} 11. Nbd2 {[%clk 0:02:51]}  Be7 {[%clk 0:02:51]} 12. b3 {[%clk 0:02:51]}  O-O {[%clk 0:02:49]} 13. Bb2 {[%clk 0:02:51]}  c5 {[%clk 0:02:49]} 14. e4 {[%clk 0:02:43]}  Qb6 {[%clk 0:02:46]} 15. h3 {[%clk 0:02:35]}  Rfd8 {[%clk 0:02:33]} 16. Kh2 {[%clk 0:02:24]}  Bf8 {[%clk 0:01:59]} 17. Bc3 {[%clk 0:02:23]}  c4 {[%clk 0:01:51]} 18. bxc4 {[%clk 0:02:05]}  bxc4 {[%clk 0:01:51]} 19. Nxc4 {[%clk 0:01:53]}  Qa7 {[%clk 0:01:50]} 20. Ba5 {[%clk 0:01:43]}  Re8 {[%clk 0:01:38]} 21. Rab1 {[%clk 0:01:39]}  Ba8 {[%clk 0:01:36]} 22. Qe2 {[%clk 0:01:35]}  Qc5 {[%clk 0:01:27]} 23. Bb4 {[%clk 0:01:30]}  Qc6 {[%clk 0:01:27]} 24. Bxf8 {[%clk 0:01:25]}  Rxf8 {[%clk 0:01:28]} 25. Nfe5 {[%clk 0:01:10]}  Nxe5 {[%clk 0:01:21]} 26. Nxe5 {[%clk 0:01:11]}  Qxa4 {[%clk 0:01:22]} 27. Nc4 {[%clk 0:01:00]}  Rc5 {[%clk 0:00:58]} 28. Qe3 {[%clk 0:00:45]}  Rxc4 {[%clk 0:00:18]} 29. dxc4 {[%clk 0:00:42]}  Qxc4 {[%clk 0:00:19]} 30. Rfc1 {[%clk 0:00:36]}  Qa4 {[%clk 0:00:19]} 31. Ra1 {[%clk 0:00:35]}  Qb5 {[%clk 0:00:19]} 32. Rc5 {[%clk 0:00:23]}  Qb7 {[%clk 0:00:19]} 33. Rac1 {[%clk 0:00:20]}  Nxe4 {[%clk 0:00:13]} 34. R5c4 {[%clk 0:00:19]}  f5 {[%clk 0:00:13]} 35. Bxe4 {[%clk 0:00:16]}  fxe4 {[%clk 0:00:13]} 36. Rc7 {[%clk 0:00:16]}  Qd5 {[%clk 0:00:10]} 37. R1c5 {[%clk 0:00:11]}  Qa2 {[%clk 0:00:10]} 38. Kg1 {[%clk 0:00:09]}  Qb1+ {[%clk 0:00:08]} 39. Kg2 {[%clk 0:00:08]}  Qa1 {[%clk 0:00:08]} 40. Rc3 {[%clk 0:00:07]}  h6 {[%clk 0:00:06]} 41. Qd4 {[%clk 0:00:06]}  e3+ {[%clk 0:00:05]} 42. f3 {[%clk 0:00:00]}  Bxf3+ {[%clk 0:00:05]} 0-1


[Site "https://www.chess.com"]

[Event "Titled Tuesday Blitz July 4 Early 2023"]
[White "Bueno, Alfeu Junior Varela"]
[Black "Namitbir Singh Walia"]
[WhiteFideId "2108879"]
[BlackFideId "35071068"]
[WhiteElo "2444"]
[BlackElo "2537"]
[Result "0-1"]
[Round "9"]
[TimeControl "180+2"]
[Date "2023.07.04"]
[WhiteClock "0:00:16"]
[BlackClock "0:00:10"]
[Board "98"]

1. e4 {[%clk 0:03:00]}  e5 {[%clk 0:02:59]} 2. Nc3 {[%clk 0:03:00]}  Nf6 {[%clk 0:02:58]} 3. f4 {[%clk 0:03:00]}  d5 {[%clk 0:02:51]} 4. fxe5 {[%clk 0:03:01]}  Nxe4 {[%clk 0:02:51]} 5. Qf3 {[%clk 0:03:01]}  Nxc3 {[%clk 0:02:42]} 6. dxc3 {[%clk 0:03:02]}  Nc6 {[%clk 0:02:38]} 7. Bb5 {[%clk 0:02:58]}  Bc5 {[%clk 0:02:20]} 8. Qg3 {[%clk 0:02:51]}  Be6 {[%clk 0:02:07]} 9. Nf3 {[%clk 0:02:44]}  Rg8 {[%clk 0:01:52]} 10. Nd4 {[%clk 0:02:30]}  Qd7 {[%clk 0:01:45]} 11. Be3 {[%clk 0:01:52]}  Bxd4 {[%clk 0:01:30]} 12. cxd4 {[%clk 0:01:53]}  a6 {[%clk 0:01:22]} 13. Bd3 {[%clk 0:01:45]}  O-O-O {[%clk 0:01:04]} 14. Bxh7 {[%clk 0:01:40]}  Rh8 {[%clk 0:01:04]} 15. Qxg7 {[%clk 0:01:40]}  Bf5 {[%clk 0:01:01]} 16. Bxf5 {[%clk 0:01:11]}  Qxf5 {[%clk 0:01:02]} 17. O-O-O {[%clk 0:01:11]}  Rdg8 {[%clk 0:00:42]} 18. Qf6 {[%clk 0:01:10]}  Qxf6 {[%clk 0:00:41]} 19. exf6 {[%clk 0:01:11]}  Rxg2 {[%clk 0:00:42]} 20. h4 {[%clk 0:01:08]}  Rh5 {[%clk 0:00:31]} 21. Bg5 {[%clk 0:00:59]}  Nd8 {[%clk 0:00:27]} 22. Rde1 {[%clk 0:00:56]}  Kd7 {[%clk 0:00:11]} 23. Re7+ {[%clk 0:00:55]}  Kc6 {[%clk 0:00:11]} 24. Rhe1 {[%clk 0:00:49]}  Rh8 {[%clk 0:00:10]} 25. Re8 {[%clk 0:00:45]}  Rxe8 {[%clk 0:00:09]} 26. Rxe8 {[%clk 0:00:46]}  Ne6 {[%clk 0:00:10]} 27. Rxe6+ {[%clk 0:00:45]}  fxe6 {[%clk 0:00:10]} 28. f7 {[%clk 0:00:44]}  Rf2 {[%clk 0:00:10]} 29. h5 {[%clk 0:00:30]}  Rxf7 {[%clk 0:00:11]} 30. h6 {[%clk 0:00:31]}  Kd7 {[%clk 0:00:11]} 31. Kd1 {[%clk 0:00:27]}  Ke8 {[%clk 0:00:11]} 32. Ke2 {[%clk 0:00:25]}  Kf8 {[%clk 0:00:12]} 33. Ke3 {[%clk 0:00:25]}  Kg8 {[%clk 0:00:12]} 34. Bf4 {[%clk 0:00:25]}  Kh7 {[%clk 0:00:11]} 35. c3 {[%clk 0:00:21]}  Kg6 {[%clk 0:00:12]} 36. Kf3 {[%clk 0:00:19]}  c5 {[%clk 0:00:10]} 37. dxc5 {[%clk 0:00:16]}  e5 {[%clk 0:00:10]} 0-1


[Site "https://www.chess.com"]

[Event "Titled Tuesday Blitz July 4 Early 2023"]
[White "Karamsetty, Jeevan"]
[Black "Labussiere, Yago"]
[WhiteFideId "2025337"]
[BlackFideId "2186969"]
[WhiteElo "2527"]
[BlackElo "2387"]
[Result "0-1"]
[Round "9"]
[TimeControl "180+2"]
[Date "2023.07.04"]
[WhiteClock "0:00:00"]
[BlackClock "0:01:12"]
[Board "103"]

1. c4 {[%clk 0:03:00]}  e5 {[%clk 0:02:55]} 2. Nc3 {[%clk 0:03:00]}  Nc6 {[%clk 0:02:55]} 3. e3 {[%clk 0:02:55]}  g6 {[%clk 0:02:55]} 4. d4 {[%clk 0:02:54]}  d6 {[%clk 0:02:52]} 5. Nf3 {[%clk 0:02:52]}  Bg7 {[%clk 0:02:52]} 6. Be2 {[%clk 0:02:51]}  Nf6 {[%clk 0:02:49]} 7. O-O {[%clk 0:02:50]}  exd4 {[%clk 0:02:48]} 8. exd4 {[%clk 0:02:50]}  O-O {[%clk 0:02:48]} 9. b3 {[%clk 0:02:42]}  Bf5 {[%clk 0:02:46]} 10. Bb2 {[%clk 0:02:37]}  Ne4 {[%clk 0:02:46]} 11. Nxe4 {[%clk 0:02:33]}  Bxe4 {[%clk 0:02:47]} 12. Bd3 {[%clk 0:02:26]}  Re8 {[%clk 0:02:38]} 13. Bxe4 {[%clk 0:02:16]}  Rxe4 {[%clk 0:02:39]} 14. Rb1 {[%clk 0:02:07]}  Qe7 {[%clk 0:02:36]} 15. d5 {[%clk 0:01:55]}  Ne5 {[%clk 0:02:28]} 16. Bxe5 {[%clk 0:01:49]}  Bxe5 {[%clk 0:02:25]} 17. Nxe5 {[%clk 0:01:39]}  Qxe5 {[%clk 0:02:24]} 18. Qf3 {[%clk 0:01:28]}  Re8 {[%clk 0:02:18]} 19. g3 {[%clk 0:01:27]}  a5 {[%clk 0:02:16]} 20. Qg2 {[%clk 0:01:14]}  h5 {[%clk 0:02:14]} 21. Qh3 {[%clk 0:01:14]}  b6 {[%clk 0:02:11]} 22. Qd7 {[%clk 0:01:11]}  Re7 {[%clk 0:02:10]} 23. Qc8+ {[%clk 0:01:12]}  Kg7 {[%clk 0:02:11]} 24. h4 {[%clk 0:01:07]}  Qd4 {[%clk 0:02:01]} 25. Rbd1 {[%clk 0:00:54]}  Qb2 {[%clk 0:02:00]} 26. Qd8 {[%clk 0:00:25]}  Qxa2 {[%clk 0:01:59]} 27. Rd3 {[%clk 0:00:24]}  a4 {[%clk 0:01:48]} 28. bxa4 {[%clk 0:00:20]}  Qxc4 {[%clk 0:01:48]} 29. Rf3 {[%clk 0:00:19]}  Qxd5 {[%clk 0:01:48]} 30. Kg2 {[%clk 0:00:15]}  R4e5 {[%clk 0:01:47]} 31. Rc1 {[%clk 0:00:13]}  c5 {[%clk 0:01:46]} 32. Rc3 {[%clk 0:00:11]}  Re1 {[%clk 0:01:43]} 33. Rd3 {[%clk 0:00:09]}  Qe4 {[%clk 0:01:30]} 34. Qxd6 {[%clk 0:00:08]}  Re6 {[%clk 0:01:25]} 35. Qd8 {[%clk 0:00:09]}  Qe2 {[%clk 0:01:12]} 36. Rd7 {[%clk 0:00:00]}  Qf1+ {[%clk 0:01:12]} 0-1


[Site "https://www.chess.com"]

[Event "Titled Tuesday Blitz July 4 Early 2023"]
[White "Toolin, Christopher"]
[Black "Vyatkin, Dmitry"]
[WhiteFideId "2024543"]
[BlackFideId "4171900"]
[WhiteElo "2366"]
[BlackElo "2526"]
[Result "1/2-1/2"]
[Round "9"]
[TimeControl "180+2"]
[Date "2023.07.04"]
[WhiteClock "0:00:34"]
[BlackClock "0:01:07"]
[Board "104"]

1. e4 {[%clk 0:02:54]}  e6 {[%clk 0:02:59]} 2. d4 {[%clk 0:02:54]}  d5 {[%clk 0:02:59]} 3. Nc3 {[%clk 0:02:54]}  Nf6 {[%clk 0:02:59]} 4. e5 {[%clk 0:02:52]}  Nfd7 {[%clk 0:02:59]} 5. f4 {[%clk 0:02:53]}  c5 {[%clk 0:02:58]} 6. Nf3 {[%clk 0:02:54]}  Nc6 {[%clk 0:02:58]} 7. Be3 {[%clk 0:02:55]}  cxd4 {[%clk 0:02:58]} 8. Nxd4 {[%clk 0:02:56]}  Bc5 {[%clk 0:02:58]} 9. Qd2 {[%clk 0:02:56]}  O-O {[%clk 0:02:57]} 10. O-O-O {[%clk 0:02:57]}  a6 {[%clk 0:02:54]} 11. Qf2 {[%clk 0:02:57]}  Bxd4 {[%clk 0:02:53]} 12. Bxd4 {[%clk 0:02:58]}  b5 {[%clk 0:02:54]} 13. h4 {[%clk 0:02:54]}  b4 {[%clk 0:02:49]} 14. Ne2 {[%clk 0:02:55]}  a5 {[%clk 0:02:47]} 15. Be3 {[%clk 0:02:36]}  Ba6 {[%clk 0:02:47]} 16. h5 {[%clk 0:02:30]}  Qc7 {[%clk 0:02:41]} 17. h6 {[%clk 0:02:26]}  g6 {[%clk 0:02:41]} 18. Kb1 {[%clk 0:02:18]}  Rfc8 {[%clk 0:02:40]} 19. Rc1 {[%clk 0:02:12]}  a4 {[%clk 0:02:33]} 20. Nd4 {[%clk 0:02:07]}  Nxd4 {[%clk 0:02:31]} 21. Bxd4 {[%clk 0:02:06]}  b3 {[%clk 0:02:24]} 22. a3 {[%clk 0:01:37]}  Qb7 {[%clk 0:01:29]} 23. Bxa6 {[%clk 0:01:10]}  Qxa6 {[%clk 0:01:28]} 24. Rh3 {[%clk 0:00:46]}  Qb5 {[%clk 0:01:13]} 25. Qd2 {[%clk 0:00:34]}  Nb6 {[%clk 0:01:07]} 1/2-1/2


[Site "https://www.chess.com"]